bitfinex-derivatives/quotes_BTCF0:USTF0_20251216
["timestamp","ask_amount","ask_price","bid_price","bid_amount"]
[1765912551930,0.00017169,87348.0,87339.0,0.64757]
[1765912551931,0.00017169,87348.0,87347.0,0.21891]
[1765912552125,0.02891303,87348.0,87347.0,0.21891]
[1765912552333,0.00017169,87348.0,87347.0,0.21891]
[1765912552626,0.00017169,87348.0,87347.0,0.5911611]
[1765912553021,0.00217169,87348.0,87347.0,0.5911611]
[1765912553221,0.00317169,87348.0,87347.0,0.5911611]
[1765912553424,0.3608,87363.0,87362.0,0.2303591]
[1765912553622,0.74058748,87370.0,87369.0,0.21891]
[1765912553829,0.63728669,87370.0,87369.0,0.21891]
[1765912554024,0.64873469,87370.0,87369.0,0.21891]
[1765912554726,0.28793469,87370.0,87369.0,0.21891]
[1765912555427,0.27648669,87370.0,87369.0,0.21891]
[1765912555828,0.27748669,87370.0,87369.0,0.21891]
[1765912556131,0.27848669,87370.0,87369.0,0.21891]
[1765912556534,0.27648669,87370.0,87369.0,0.21891]
[1765912556736,0.27748669,87370.0,87369.0,0.21891]
[1765912557135,0.27648669,87370.0,87369.0,0.21891]
[1765912557337,0.27748669,87370.0,87369.0,0.21891]
[1765912557537,0.27748669,87370.0,87369.0,0.21991]
[1765912557725,0.27648669,87370.0,87369.0,0.21991]
[1765912557926,0.27748669,87370.0,87369.0,0.21991]
[1765912558527,0.28893469,87370.0,87369.0,0.21991]
[1765912558730,0.28893469,87370.0,87369.0,0.001]
[1765912559034,0.22235,87369.0,87368.0,0.0114483]
[1765912559233,0.24717457,87369.0,87368.0,0.2303583]
[1765912560127,0.24817457,87369.0,87368.0,0.2303583]
[1765912560626,0.24917457,87369.0,87368.0,0.2303583]
[1765912561022,0.24817457,87369.0,87368.0,0.2303583]
[1765912561332,0.24917457,87369.0,87368.0,0.21891]
[1765912562435,0.00017169,87378.0,87377.0,0.2303571]
[1765912562642,0.4686,87390.0,87389.0,0.2303556]
[1765912562838,0.49341925,87390.0,87389.0,0.2303556]
[1765912563135,0.3608,87390.0,87389.0,0.2303556]
[1765912563339,0.22235,87382.0,87381.0,0.28677]
[1765912563531,0.22235,87382.0,87377.0,0.3608]
[1765912563532,0.22335,87378.0,87377.0,0.21991]
[1765912563731,0.22335,87378.0,87377.0,0.001]
[1765912563929,0.24815433,87378.0,87377.0,0.001]
[1765912564130,0.24815433,87378.0,87377.0,0.21135]
[1765912564636,0.24815433,87378.0,87377.0,0.001]
[1765912565031,0.22335,87378.0,87377.0,0.21135]
[1765912565234,0.4706,87382.0,87381.0,0.21135]
[1765912565432,0.57852,87382.0,87381.0,0.2237966]
[1765912565840,0.60331107,87382.0,87381.0,0.002]
[1765912566036,0.2281678,87372.0,87371.0,0.2217978]
[1765912566441,0.21672,87372.0,87371.0,0.2217978]
[1765912566834,0.21672,87379.0,87378.0,0.221797]
[1765912567730,0.1088,87379.0,87378.0,0.221797]
[1765912567934,0.1202469,87379.0,87378.0,0.221797]
[1765912568133,0.2281669,87379.0,87378.0,0.221797]
[1765912568342,0.2281669,87379.0,87378.0,0.21035]
[1765912568537,0.21672,87375.0,87374.0,0.46563]
[1765912568732,0.21672,87375.0,87374.0,0.57115]
[1765912570942,0.228168,87370.0,87369.0,0.10500169]
[1765912571344,0.228168,87370.0,87369.0,0.21052169]
[1765912573344,0.21772,87370.0,87369.0,0.21052169]
[1765912573735,0.21672,87370.0,87369.0,0.21052169]
[1765912573932,0.21772,87370.0,87369.0,0.21052169]
[1765912574338,0.1108,87370.0,87369.0,0.21052169]
[1765912574543,0.002,87370.0,87369.0,0.21052169]
[1765912575037,0.001,87370.0,87369.0,0.21052169]
[1765912575344,0.21689169,87386.0,87385.0,0.21035]
[1765912575544,0.10897169,87386.0,87385.0,0.2217961]
[1765912575849,0.00017169,87386.0,87385.0,0.2217961]
[1765912577642,0.21672,87407.0,87406.0,0.21035]
[1765912577850,0.21672,87407.0,87400.0,0.284464]
[1765912577851,0.21672,87401.0,87400.0,0.284464]
[1765912578034,0.24174017,87401.0,87400.0,0.284464]
[1765912578645,0.13382017,87401.0,87400.0,0.284464]
[1765912578836,0.02502017,87401.0,87400.0,0.284464]
[1765912579341,0.21689169,87409.0,87408.0,0.2844631]
[1765912579541,0.02518149,87409.0,87408.0,0.2844631]
[1765912579737,0.21689169,87409.0,87408.0,0.2844631]
[1765912580346,0.00017169,87409.0,87408.0,0.2844631]
[1765912580748,0.12252967,87418.0,87417.0,0.2844619]
[1765912581047,0.12252967,87418.0,87407.0,0.57115]
[1765912581048,0.21672,87408.0,87407.0,0.57115]
[1765912581453,0.21672,87408.0,87407.0,0.5825932]
[1765912582444,0.1088,87408.0,87407.0,0.5825932]
[1765912582958,0.1088,87408.0,87407.0,0.5835932]
[1765912583458,0.21689169,87416.0,87415.0,0.21035]
[1765912584761,0.00017169,87416.0,87415.0,0.21035]
[1765912584951,0.10897169,87416.0,87415.0,0.21035]
[1765912585151,0.21689169,87416.0,87415.0,0.21035]
[1765912585549,0.21789169,87416.0,87415.0,0.21035]
[1765912585751,0.21789169,87416.0,87415.0,0.21135]
[1765912586155,0.21689169,87416.0,87415.0,0.21135]
[1765912586359,0.00017169,87416.0,87415.0,0.21035]
[1765912586645,0.00117169,87416.0,87415.0,0.21035]
[1765912586846,0.21789169,87416.0,87415.0,0.21035]
[1765912587347,0.00117169,87416.0,87415.0,0.21035]
[1765912587760,0.21889169,87416.0,87415.0,0.21035]
[1765912587947,0.21789169,87416.0,87415.0,0.21135]
[1765912588150,0.21689169,87416.0,87415.0,0.21135]
[1765912588757,0.21689169,87416.0,87415.0,0.001]
[1765912589675,0.21672,87408.0,87407.0,0.3608]
[1765912589855,0.228164,87401.0,87400.0,0.27302]
[1765912590055,0.3608,87408.0,87392.0,0.00017169]
[1765912590056,0.21672,87393.0,87392.0,0.00017169]
[1765912590862,0.21672,87393.0,87392.0,0.21052169]
[1765912591564,0.5889642,87399.0,87398.0,0.21035]
[1765912591765,0.61381622,87399.0,87398.0,0.21035]
[1765912592062,0.60237202,87399.0,87398.0,0.21035]
[1765912592668,0.60337202,87399.0,87398.0,0.21035]
[1765912594367,0.24257202,87399.0,87398.0,0.21035]
[1765912594958,0.24157202,87399.0,87398.0,0.21135]
[1765912595761,0.24157202,87399.0,87398.0,0.21035]
[1765912595966,0.24157202,87399.0,87398.0,0.10483]
[1765912596663,0.24157202,87399.0,87398.0,0.20792]
[1765912596664,0.21672,87399.0,87398.0,0.20792]
[1765912596863,0.2012,87398.0,87397.0,0.0114444]
[1765912597065,0.2012,87398.0,87397.0,0.2197644]
[1765912598169,0.2012,87398.0,87397.0,0.2207644]
[1765912599463,0.09911,87407.0,87406.0,0.2197633]
[1765912599667,0.02474139,87407.0,87406.0,0.2197633]
[1765912600169,0.12385139,87407.0,87406.0,0.2197633]
[1765912600562,0.2012,87394.0,87393.0,0.580565]
[1765912601465,0.2012,87403.0,87402.0,0.2197639]
[1765912601773,0.22595187,87403.0,87402.0,0.2197639]
[1765912602074,0.2012,87403.0,87402.0,0.2197639]
[1765912602374,0.22596109,87403.0,87402.0,0.2197639]
[1765912603969,0.22696109,87403.0,87402.0,0.2207639]
[1765912604369,0.22596109,87403.0,87402.0,0.2207639]
[1765912604973,0.22596109,87403.0,87402.0,0.2197639]
[1765912605174,0.22596109,87403.0,87402.0,0.2207639]
[1765912605968,0.12387109,87403.0,87402.0,0.2207639]
[1765912606174,0.02476109,87403.0,87402.0,0.2207639]
[1765912606759,0.02476109,87403.0,87402.0,0.2197639]
[1765912607069,0.02476109,87403.0,87402.0,0.2207639]
[1765912607475,0.3608,87408.0,87407.0,0.2197632]
[1765912607774,0.4847014,87408.0,87407.0,0.2197632]
[1765912607972,0.1239014,87408.0,87407.0,0.5805632]
[1765912608276,0.00017169,87416.0,87415.0,0.2197622]
[1765912608573,0.22616231,87416.0,87415.0,0.2197622]
[1765912609168,0.02496231,87416.0,87415.0,0.2197622]
[1765912609366,0.12407231,87416.0,87415.0,0.2197622]
[1765912610066,0.02496231,87416.0,87415.0,0.2197622]
[1765912611174,0.00017169,87416.0,87415.0,0.5805622]
[1765912611366,0.00017169,87416.0,87415.0,0.5815622]
[1765912611567,0.20137169,87416.0,87415.0,0.5815622]
[1765912611969,0.20137169,87416.0,87415.0,0.5805622]
[1765912612176,0.20137169,87416.0,87415.0,0.5815622]
[1765912614275,0.20137169,87416.0,87415.0,0.5805622]
[1765912614480,0.20337169,87416.0,87415.0,0.5805622]
[1765912615070,0.20237169,87416.0,87415.0,0.56912]
[1765912615270,0.20337169,87416.0,87415.0,0.20832]
[1765912615782,0.2126429,87409.0,87408.0,0.5805631]
[1765912616172,0.23740686,87409.0,87408.0,0.2197631]
[1765912616770,0.23740753,87409.0,87408.0,0.2197631]
[1765912617374,0.23840753,87409.0,87408.0,0.2197631]
[1765912617565,0.23940753,87409.0,87408.0,0.2197631]
[1765912617770,0.22796463,87409.0,87408.0,0.2197631]
[1765912618280,0.22696463,87409.0,87408.0,0.2197631]
[1765912618579,0.22796463,87409.0,87408.0,0.2197631]
[1765912619376,0.2012,87406.0,87405.0,0.56912]
[1765912619579,0.22596463,87406.0,87405.0,0.3608]
[1765912620072,0.212644,87401.0,87400.0,0.2830141]
[1765912620269,0.23740863,87401.0,87400.0,0.2830141]
[1765912621577,0.2126444,87398.0,87397.0,0.1166744]
[1765912621781,0.2126449,87394.0,87393.0,0.219765]
[1765912621981,0.59820953,87394.0,87393.0,0.219765]
[1765912622177,0.59820953,87394.0,87392.0,0.00017169]
[1765912622178,0.09911,87393.0,87392.0,0.00017169]
[1765912622381,0.2012,87368.0,87367.0,0.2830184]
[1765912622676,0.22596463,87368.0,87367.0,0.2830184]
[1765912623477,0.02476463,87368.0,87367.0,0.2830184]
[1765912623774,0.00017169,87376.0,87375.0,0.2197674]
[1765912623974,0.0249295,87376.0,87375.0,0.2197674]
[1765912624384,0.00017169,87376.0,87375.0,0.2197674]
[1765912625379,0.00017169,87376.0,87375.0,0.2207674]
[1765912626285,0.00117169,87376.0,87375.0,0.2207674]
[1765912628675,0.04063304,87392.0,87375.0,0.2207674]
[1765912628676,0.09123,87392.0,87391.0,0.19737]
[1765912628877,0.0551932,87408.0,87397.0,0.2088144]
[1765912628878,0.18941,87398.0,87397.0,0.2088144]
[1765912629281,0.2008537,87404.0,87403.0,0.2088137]
[1765912629469,0.2008537,87404.0,87403.0,0.19737]
[1765912630768,0.19141,87404.0,87403.0,0.19737]
[1765912631766,0.002,87404.0,87403.0,0.19737]
[1765912631969,0.10018,87404.0,87403.0,0.19737]
[1765912632470,0.09818,87404.0,87403.0,0.19737]
[1765912632971,0.09918,87404.0,87403.0,0.19737]
[1765912633171,0.09918,87404.0,87403.0,0.19837]
[1765912633372,0.09818,87404.0,87403.0,0.19837]
[1765912633982,0.18941,87404.0,87403.0,0.19837]
[1765912635668,0.19041,87404.0,87403.0,0.19837]
[1765912636273,0.19041,87404.0,87403.0,0.19737]
[1765912637273,0.19041,87404.0,87403.0,0.19837]
[1765912638790,0.18941,87404.0,87403.0,0.19737]
[1765912639091,0.18941,87404.0,87394.0,0.3608]
[1765912639092,0.2008569,87379.0,87378.0,0.55817]
[1765912639472,0.2008569,87379.0,87378.0,0.3608]
[1765912639877,0.2008574,87375.0,87374.0,0.25718]
[1765912641275,0.0114481,87371.0,87370.0,0.208818]
[1765912641482,0.18941,87374.0,87373.0,0.2088177]
[1765912643081,0.19041,87374.0,87373.0,0.2088177]
[1765912643482,0.19041,87374.0,87373.0,0.2098177]
[1765912643684,0.2018575,87374.0,87373.0,0.0124477]
[1765912643887,0.2018575,87374.0,87373.0,0.2098177]
[1765912644188,0.19041,87374.0,87373.0,0.2098177]
[1765912644785,0.18941,87374.0,87373.0,0.2098177]
[1765912644988,0.19041,87374.0,87373.0,0.2098177]
[1765912645190,0.19041,87374.0,87373.0,0.2088177]
[1765912645389,0.18941,87374.0,87373.0,0.2088177]
[1765912645589,0.19041,87374.0,87373.0,0.2088177]
[1765912645990,0.18941,87374.0,87373.0,0.2098177]
[1765912646289,0.19041,87374.0,87373.0,0.2098177]
[1765912648691,0.19041,87374.0,87373.0,0.2088177]
[1765912648887,0.19041,87374.0,87373.0,0.2098177]
[1765912649294,0.19041,87374.0,87373.0,0.19837]
[1765912649598,0.19041,87374.0,87373.0,0.19737]
[1765912651396,0.19041,87374.0,87366.0,0.00017169]
[1765912651397,0.2008584,87367.0,87366.0,0.00017169]
[1765912651804,0.2008584,87367.0,87366.0,0.19754169]
[1765912651994,0.18941,87367.0,87366.0,0.19754169]
[1765912652992,0.18941,87367.0,87366.0,0.19854169]
[1765912654203,0.2008584,87367.0,87366.0,0.20999029]
[1765912656008,0.22949907,87367.0,87366.0,0.20999029]
[1765912656399,0.21805067,87367.0,87366.0,0.20999029]
[1765912657215,0.18941,87367.0,87366.0,0.20999029]
[1765912657414,0.18369,87373.0,87372.0,0.2007778]
[1765912657610,0.12098378,87373.0,87372.0,0.2007778]
[1765912658100,0.02820378,87373.0,87372.0,0.2007778]
[1765912658305,0.18369,87380.0,87379.0,0.2007769]
[1765912658507,0.09295169,87383.0,87382.0,0.2007765]
[1765912659118,0.21255433,87383.0,87382.0,0.2007765]
[1765912659617,0.21255433,87383.0,87382.0,0.18933]
[1765912660622,0.1951374,87375.0,87374.0,0.24233]
[1765912662205,0.1961374,87375.0,87374.0,0.24233]
[1765912663119,0.1971374,87375.0,87374.0,0.24233]
[1765912663713,0.1961374,87375.0,87374.0,0.24233]
[1765912663914,0.18469,87375.0,87374.0,0.24233]
[1765912664115,0.001,87375.0,87374.0,0.24233]
[1765912664624,0.21255433,87383.0,87382.0,0.18933]
[1765912665011,0.09295169,87383.0,87382.0,0.2007765]
[1765912665218,0.00017169,87383.0,87382.0,0.2007765]
[1765912666119,0.18386169,87383.0,87382.0,0.2007765]
[1765912667123,0.18386169,87383.0,87382.0,0.2017765]
[1765912667725,0.00017169,87383.0,87382.0,0.2017765]
[1765912667928,0.00017169,87383.0,87382.0,0.2007765]
[1765912668143,0.00017169,87383.0,87382.0,0.2017765]
[1765912669930,0.00117169,87383.0,87382.0,0.2017765]
[1765912670228,0.00217169,87383.0,87382.0,0.2017765]
[1765912670828,0.00117169,87383.0,87382.0,0.2027765]
[1765912671015,0.00017169,87383.0,87382.0,0.2017765]
[1765912671221,0.00117169,87383.0,87382.0,0.2027765]
[1765912672415,0.18369,87395.0,87394.0,0.2007749]
[1765912672733,0.54449,87408.0,87407.0,0.18933]
[1765912672921,0.56939426,87408.0,87407.0,0.18933]
[1765912673428,0.20859426,87408.0,87407.0,0.18933]
[1765912673620,0.23661509,87408.0,87407.0,0.18933]
[1765912673819,0.23761509,87408.0,87407.0,0.18933]
[1765912674623,0.23661509,87408.0,87407.0,0.19033]
[1765912675219,0.21271083,87408.0,87407.0,0.19033]
[1765912675820,0.23758944,87408.0,87407.0,0.19033]
[1765912676226,0.21271083,87408.0,87407.0,0.19033]
[1765912676432,0.23758283,87408.0,87407.0,0.19033]
[1765912676732,0.23758291,87408.0,87407.0,0.19033]
[1765912677026,0.23758291,87408.0,87407.0,0.18933]
[1765912677332,0.21371083,87408.0,87407.0,0.18933]
[1765912679321,0.21271083,87408.0,87407.0,0.18933]
[1765912679532,0.21371083,87408.0,87407.0,0.18933]
[1765912680028,0.002,87408.0,87407.0,0.18933]
[1765912680335,0.1951336,87404.0,87403.0,0.18933]
[1765912680528,0.18369,87404.0,87403.0,0.18933]
[1765912680826,0.001,87408.0,87407.0,0.18933]
[1765912681221,0.18469,87408.0,87407.0,0.19033]
[1765912681423,0.18369,87408.0,87407.0,0.19033]
[1765912681621,0.18469,87408.0,87407.0,0.19033]
[1765912682135,0.18369,87408.0,87407.0,0.19033]
[1765912682627,0.18369,87408.0,87407.0,0.18933]
[1765912682831,0.18469,87408.0,87407.0,0.19133]
[1765912683136,0.001,87408.0,87407.0,0.19133]
[1765912683431,0.001,87408.0,87407.0,0.18933]
[1765912683629,0.001,87408.0,87407.0,0.19033]
[1765912684230,0.21739233,87415.0,87414.0,0.17215]
[1765912684534,0.17679,87408.0,87407.0,0.08859]
[1765912684730,0.17679,87408.0,87407.0,0.17415]
[1765912684927,0.17679,87408.0,87407.0,0.17515]
[1765912685327,0.08608,87408.0,87407.0,0.17515]
[1765912685535,0.17679,87413.0,87412.0,0.17215]
[1765912686729,0.00017169,87416.0,87415.0,0.17215]
[1765912687538,0.17679,87410.0,87409.0,0.08659]
[1765912687738,0.17679,87410.0,87409.0,0.2227]
[1765912687926,0.1882337,87403.0,87402.0,0.22515]
[1765912688328,0.08608,87409.0,87408.0,0.17215]
[1765912688634,0.08608,87409.0,87408.0,0.53295]
[1765912688930,0.53776169,87416.0,87415.0,0.1855922]
[1765912689139,0.53776169,87416.0,87415.0,0.17415]
[1765912689337,0.56265465,87416.0,87415.0,0.17415]
[1765912689536,0.20185465,87416.0,87415.0,0.17415]
[1765912689833,0.08625169,87416.0,87415.0,0.17215]
[1765912690033,0.00017169,87416.0,87415.0,0.17215]
[1765912690234,0.00017169,87416.0,87415.0,0.53295]
[1765912690435,0.08608,87434.0,87433.0,0.1835898]
[1765912690629,0.13894188,87434.0,87433.0,0.1835898]
[1765912690931,0.08608,87434.0,87433.0,0.1835898]
[1765912691530,0.17679,87434.0,87433.0,0.17215]
[1765912692636,0.17779,87434.0,87433.0,0.17215]
[1765912693227,0.08708,87434.0,87433.0,0.17215]
[1765912693834,0.17779,87434.0,87433.0,0.17215]
[1765912694223,0.001,87434.0,87433.0,0.17215]
[1765912694937,0.17779,87434.0,87433.0,0.17215]
[1765912695336,0.17779,87434.0,87433.0,0.17315]
[1765912696040,0.17779,87434.0,87433.0,0.17215]
[1765912696041,0.17679,87434.0,87433.0,0.17215]
[1765912696242,0.17879,87434.0,87433.0,0.17215]
[1765912697043,0.17779,87434.0,87433.0,0.17215]
[1765912698427,0.17879,87434.0,87433.0,0.17215]
[1765912699133,0.17779,87434.0,87433.0,0.17215]
[1765912699335,0.17879,87434.0,87433.0,0.17215]
[1765912699536,0.17679,87426.0,87425.0,0.44756158]
[1765912700144,0.17679,87426.0,87425.0,0.36097158]
[1765912700643,0.17679,87426.0,87425.0,0.17232158]
[1765912701340,0.20167901,87426.0,87425.0,0.18376238]
[1765912701540,0.20167901,87426.0,87425.0,0.18476238]
[1765912702739,0.20367901,87426.0,87425.0,0.18376238]
[1765912703957,0.20367901,87426.0,87425.0,0.17232158]
[1765912704547,0.20267901,87426.0,87425.0,0.17232158]
[1765912704948,0.20167901,87426.0,87425.0,0.17232158]
[1765912705137,0.20267901,87426.0,87425.0,0.17232158]
[1765912705538,0.20167901,87426.0,87425.0,0.17232158]
[1765912705742,0.20267901,87426.0,87425.0,0.17232158]
[1765912706248,0.02688901,87426.0,87425.0,0.17232158]
[1765912707358,0.002,87426.0,87425.0,0.17232158]
[1765912707740,0.001,87426.0,87425.0,0.17232158]
[1765912707941,0.1570925,87435.0,87434.0,0.17215]
[1765912708143,0.3722393,87437.0,87436.0,0.17215]
[1765912708345,0.4832363,87437.0,87436.0,0.17215]
[1765912708543,0.024917,87437.0,87436.0,0.17215]
[1765912708743,0.024917,87437.0,87436.0,0.53295]
[1765912709149,0.00017158,87442.0,87441.0,0.1835887]
[1765912709353,0.17696158,87442.0,87441.0,0.17215]
[1765912710653,0.17796158,87442.0,87441.0,0.17215]
[1765912711148,0.17696158,87442.0,87441.0,0.17215]
[1765912711349,0.17796158,87442.0,87441.0,0.17215]
[1765912711550,0.17896158,87442.0,87441.0,0.17215]
[1765912713649,0.17796158,87442.0,87441.0,0.17215]
[1765912713847,0.17896158,87442.0,87441.0,0.17215]
[1765912714048,0.17796158,87442.0,87441.0,0.17215]
[1765912714253,0.17796158,87442.0,87441.0,0.17315]
[1765912714845,0.17796158,87442.0,87441.0,0.17215]
[1765912715248,0.17796158,87442.0,87437.0,0.05055]
[1765912715454,0.16509,87431.0,87430.0,0.22455]
[1765912716458,0.3608,87433.0,87425.0,0.17417158]
[1765912716459,0.1765307,87426.0,87425.0,0.17417158]
[1765912717261,0.16509,87426.0,87425.0,0.17417158]
[1765912717957,0.16609,87426.0,87425.0,0.17417158]
[1765912718351,0.16609,87426.0,87425.0,0.17517158]
[1765912718960,0.16609,87426.0,87425.0,0.17417158]
[1765912720556,0.16509,87426.0,87425.0,0.17417158]
[1765912720753,0.16609,87426.0,87425.0,0.17417158]
[1765912721161,0.1908265,87426.0,87425.0,0.17417158]
[1765912721349,0.1079565,87426.0,87425.0,0.17417158]
[1765912721662,0.1908265,87426.0,87425.0,0.17417158]
[1765912722555,0.1898265,87426.0,87425.0,0.17417158]
[1765912722754,0.1908265,87426.0,87425.0,0.17417158]
[1765912722961,0.1908265,87426.0,87425.0,0.00017158]
[1765912723156,0.16509,87410.0,87409.0,0.2231]
[1765912723362,0.1765336,87404.0,87403.0,0.174]
[1765912723661,0.1765336,87404.0,87396.0,0.00014783]
[1765912723662,0.1765345,87397.0,87396.0,0.17414783]
[1765912724065,0.5373345,87397.0,87396.0,0.17414783]
[1765912724259,0.5373345,87397.0,87396.0,0.18559243]
[1765912724454,0.5373345,87397.0,87396.0,0.17414783]
[1765912725053,0.5373345,87397.0,87396.0,0.00014783]
[1765912725465,0.56302648,87397.0,87396.0,0.00014783]
[1765912726259,0.56402648,87397.0,87396.0,0.00014783]
[1765912726465,0.1765356,87389.0,87388.0,0.00017158]
[1765912726664,0.5373356,87389.0,87388.0,0.00017158]
[1765912727660,0.5383356,87389.0,87388.0,0.00017158]
[1765912728166,0.5383356,87389.0,87388.0,0.08842158]
[1765912728357,0.5383356,87389.0,87388.0,0.22327158]
[1765912729359,0.001,87389.0,87388.0,0.22327158]
[1765912729663,0.003,87389.0,87388.0,0.22327158]
[1765912730065,0.001,87389.0,87388.0,0.22327158]
[1765912730370,0.002,87389.0,87388.0,0.22327158]
[1765912730571,0.001,87389.0,87388.0,0.22327158]
[1765912730768,0.001,87389.0,87388.0,0.22427158]
[1765912730969,0.0001207,87397.0,87396.0,0.1854446]
[1765912732466,0.1652107,87397.0,87396.0,0.1854446]
[1765912732964,0.1652107,87397.0,87396.0,0.1864446]
[1765912733365,0.1776552,87397.0,87396.0,0.002]
[1765912733556,0.5384552,87397.0,87396.0,0.176]
[1765912733972,0.5374552,87397.0,87396.0,0.174]
[1765912734177,0.5374552,87397.0,87396.0,0.175]
[1765912734561,0.5374552,87397.0,87396.0,0.001]
[1765912734768,0.1765356,87389.0,87388.0,0.00017158]
[1765912734974,0.1765356,87389.0,87388.0,0.08842158]
[1765912735174,0.1765356,87389.0,87388.0,0.17417158]
[1765912736670,0.1775356,87389.0,87388.0,0.17417158]
[1765912737071,0.1765356,87389.0,87388.0,0.17417158]
[1765912737271,0.1775356,87389.0,87388.0,0.17417158]
[1765912738662,0.1765356,87389.0,87388.0,0.17417158]
[1765912738867,0.1775356,87389.0,87388.0,0.17417158]
[1765912739268,0.1765356,87389.0,87388.0,0.17417158]
[1765912739478,0.1785356,87389.0,87388.0,0.17417158]
[1765912739777,0.1785356,87389.0,87388.0,0.18561728]
[1765912740167,0.1775356,87389.0,87388.0,0.18561728]
[1765912740375,0.1785356,87389.0,87388.0,0.18561728]
[1765912741173,0.1785356,87389.0,87388.0,0.22327158]
[1765912741569,0.1785356,87389.0,87388.0,0.00017158]
[1765912741976,0.1775356,87389.0,87388.0,0.00017158]
[1765912742175,0.1785356,87389.0,87388.0,0.00017158]
[1765912742680,0.16809,87389.0,87388.0,0.22327158]
[1765912743179,0.001,87389.0,87388.0,0.22327158]
[1765912743365,0.08522,87389.0,87388.0,0.22327158]
[1765912743568,0.08422,87389.0,87388.0,0.22327158]
[1765912743770,0.08522,87389.0,87388.0,0.22327158]
[1765912744270,0.003,87389.0,87388.0,0.22327158]
[1765912744869,0.16537,87389.0,87388.0,0.22327158]
[1765912745370,0.16537,87389.0,87388.0,0.22427158]
[1765912745371,0.16337,87389.0,87388.0,0.22427158]
[1765912745573,0.16337,87389.0,87388.0,0.22527158]
[1765912745970,0.16337,87389.0,87388.0,0.22427158]
[1765912746375,0.16437,87389.0,87388.0,0.22327158]
[1765912746578,0.16537,87389.0,87388.0,0.22327158]
[1765912747168,0.16437,87389.0,87388.0,0.22327158]
[1765912747569,0.1758156,87389.0,87388.0,0.22327158]
[1765912747769,0.1758156,87389.0,87388.0,0.23471728]
[1765912747979,0.1748156,87389.0,87388.0,0.00017158]
[1765912748170,0.1758156,87389.0,87388.0,0.00017158]
[1765912748368,0.56185061,87389.0,87388.0,0.00017158]
[1765912748874,0.1748169,87379.0,87378.0,0.16548892]
[1765912749077,0.53574946,87379.0,87378.0,0.16548892]
[1765912750991,0.17494946,87379.0,87378.0,0.16548892]
[1765912751182,0.17694946,87379.0,87378.0,0.16548892]
[1765912751676,0.16450256,87379.0,87378.0,0.16548892]
[1765912751881,0.00113256,87379.0,87378.0,0.16548892]
[1765912752074,0.00013256,87379.0,87378.0,0.52728892]
[1765912752274,0.00113256,87379.0,87378.0,0.52728892]
[1765912752578,0.00017158,87387.0,87386.0,0.1746459]
[1765912752880,0.00017158,87387.0,87386.0,0.5354459]
[1765912754980,0.00017158,87387.0,87386.0,0.5364459]
[1765912755287,0.00117158,87387.0,87386.0,0.5384459]
[1765912755688,0.005,96674.0,87386.0,0.5384459]
[1765912755689,0.52417,87408.0,87407.0,0.1746432]
[1765912755889,0.52417,87408.0,87407.0,0.1632]
[1765912755890,0.18867807,87408.0,87407.0,0.1632]
[1765912756777,0.18867807,87408.0,87407.0,0.1642]
[1765912757184,0.18867807,87408.0,87407.0,0.001]
[1765912758192,0.16337,87400.0,87399.0,0.08056158]
[1765912758498,0.20012217,87400.0,87399.0,0.16337158]
[1765912759687,0.20012217,87400.0,87399.0,0.08056158]
[1765912760692,0.20112217,87400.0,87399.0,0.08056158]
[1765912761280,0.20112217,87400.0,87399.0,0.00017158]
[1765912761485,0.56292217,87400.0,87399.0,0.00017158]
[1765912761897,0.59090843,87400.0,87399.0,0.00017158]
[1765912762089,0.58990843,87400.0,87399.0,0.00017158]
[1765912762395,0.59190843,87400.0,87399.0,0.00017158]
[1765912762893,0.59090843,87400.0,87399.0,0.00017158]
[1765912763194,0.59290843,87400.0,87399.0,0.00117158]
[1765912763393,0.59290843,87400.0,87378.0,0.16548892]
[1765912763394,0.1748169,87379.0,87378.0,0.16548892]
[1765912763598,0.20012497,87379.0,87378.0,0.00228892]
[1765912763783,0.20012497,87379.0,87378.0,0.16548892]
[1765912763983,0.174819,87363.0,87362.0,0.452639]
[1765912764189,0.174819,87363.0,87362.0,0.535449]
[1765912764392,0.16337,87363.0,87362.0,0.535449]
[1765912764586,0.16337,87363.0,87362.0,0.524]
[1765912764895,0.18868285,87363.0,87362.0,0.524]
[1765912765086,0.18868285,87363.0,87362.0,0.526]
[1765912766294,0.16337,87363.0,87362.0,0.527]
[1765912766696,0.16337,87363.0,87362.0,0.526]
[1765912768602,0.16337,87363.0,87362.0,0.1652]
[1765912768989,0.16337,87363.0,87362.0,0.08239]
[1765912769486,0.16337,87363.0,87362.0,0.002]
[1765912771594,0.17482,87355.0,87354.0,0.00017168]
[1765912771898,0.56087571,87355.0,87354.0,0.00017168]
[1765912773212,0.56087571,87355.0,87354.0,0.00117168]
[1765912773618,0.56187571,87355.0,87354.0,0.00217168]
[1765912774118,0.53662,87355.0,87354.0,0.00217168]
[1765912774511,0.1729613,87345.0,87338.0,0.01374217]
[1765912774709,0.5337613,87345.0,87338.0,0.00228997]
[1765912775216,0.5337613,87345.0,87338.0,0.01374217]
[1765912775416,0.5337613,87345.0,87344.0,0.08338429]
[1765912775618,0.5337613,87345.0,87344.0,0.00012429]
[1765912776115,0.52231,87345.0,87344.0,0.16306429]
[1765912776319,0.52231,87345.0,87344.0,0.21345429]
[1765912776514,0.52231,87345.0,87344.0,0.21545429]
[1765912776713,0.52331,87345.0,87344.0,0.21645429]
[1765912776912,0.55161156,87345.0,87344.0,0.21645429]
[1765912779514,0.56306286,87345.0,87344.0,0.00312429]
[1765912779720,0.56306286,87345.0,87344.0,0.16606429]
[1765912781426,0.19081156,87345.0,87344.0,0.16606429]
[1765912781719,0.02930156,87345.0,87344.0,0.16606429]
[1765912782416,0.18340156,87345.0,87344.0,0.16606429]
[1765912782724,0.18340156,87345.0,87344.0,0.08638429]
[1765912785717,0.18340156,87345.0,87344.0,0.00312429]
[1765912786116,0.18340156,87345.0,87344.0,0.08638429]
[1765912786318,0.18340156,87345.0,87344.0,0.16606429]
[1765912791124,0.10555156,87345.0,87344.0,0.16606429]
[1765912791322,0.02930156,87345.0,87344.0,0.16606429]
[1765912791723,0.001,87345.0,87344.0,0.16606429]
[1765912793316,0.1551,87345.0,87344.0,0.16606429]
[1765912793520,0.07725,87345.0,87344.0,0.16606429]
[1765912794125,0.1551,87345.0,87344.0,0.16606429]
[1765912796232,0.1551,87345.0,87344.0,0.00312429]
[1765912797134,0.1806712,87345.0,87344.0,0.00312429]